Cogmind - Beta 15 *** ADVENTURER MODE // 2025.05.07 @ 04:03:40 Player: Rotpup_ Result: Destroyed by G-47 Trooper with Particle Gun Performance ------------- Evolutions (2) 1000 Regions Visited (6) 1200 Robots Destroyed (110) 550 Value Destroyed (4022) 4022 Prototype IDs (1) 20 Alien Tech Used (0) 0 Bonus (1498) 1498 TOTAL SCORE: 8290 Bonus ------- High Alert Combat Kills 497 Follower Combat Kills 101 Entered Garrisons 400 Used RIF Installer 500 Cogmind --------- Core Integrity 0/550 Matter 406/450 Energy 100/100 System Corruption 5% Temperature Cool (9) Movement Walking (190) Ox1 Location -8/Garrison Parts ------- > --- POWER (1) -------- (None) > --- PROPULSION (3) --- Aluminum Leg Aluminum Leg > --- UTILITY (3) ------ Large Storage Unit Large Matter Pod Relay Coupler [Grunt] (35) > --- WEAPON (4) ------- Particle Gun Particle Gun Light Assault Rifle > --- INVENTORY (15) --- Gravmag System Advanced Visual Processing Unit Improved Shield Generator Relay Coupler [NC] (38) Relay Coupler [Swarmer] (34) Relay Coupler [Grunt] (37) Relay Coupler [Hunter] (18) Relay Coupler [Behemoth] (12) Relay Coupler [Behemoth] (12) Plasma Cutter Peak State ------------ > --- POWER ------------ Improved Deuterium Engine > --- PROPULSION ------- Gravmag System Gravmag System Gravmag System > --- UTILITY ---------- Improved Heat Sink Large Storage Unit Large Matter Pod > --- WEAPON ----------- Heavy Assault Rifle Enhanced Autogun Enhanced Autogun Enhanced Autogun > --- INVENTORY -------- Advanced Visual Processing Unit Improved Shield Generator Relay Coupler [Swarmer] Relay Coupler [Swarmer] Relay Coupler [Grunt] Relay Coupler [Grunt] Relay Coupler [Grunt] Relay Coupler [Sentry] Relay Coupler [Sentry] Light Assault Rifle Mini Grenade Launcher Datajack Remote Datajack Plasma Cutter Axe [Rating: 39] Favorites ----------- Power Improved Deuterium Engine Engine Improved Deuterium Engine Power Core Light Nuclear Core Propulsion Armored Wheel Treads Light Treads Leg Aluminum Leg Wheel Armored Wheel Hover Unit Gravmag System Utility Large Storage Unit Device Improved Heat Sink Storage Large Storage Unit Processor Improved Terrain Scan Processor Hackware Relay Coupler [Sentry] Weapon Enhanced Autogun Energy Gun Particle Gun Energy Cannon Beam Cannon Ballistic Gun Enhanced Autogun Launcher Mini Grenade Launcher Special Weapon Remote Datajack Slashing Weapon Katana Special Melee Weapon Datajack Build | -11 -10 -9 -8 -8 -8 -8 ------- Run | Yrd Mat Mat Mat Gar Sto Gar Slots Evolved 4 | . . 2 2 . . . Power . | . . . . . . . Propulsion 1 | . . 1 . . . . Utility 1 | . . . 1 . . . Weapon 2 | . . 1 1 . . . Parts Attached 56 | 7 8 6 3 16 8 8 Power 4 | 1 1 . 1 1 . . Engine 3 | 1 1 . . 1 . . Core 1 | . . . 1 . . . Reactor . | . . . . . . . Propulsion 14 | 2 2 1 . 4 3 2 Treads 4 | 2 . . . . 2 . Leg 2 | . . . . . . 2 Wheel 4 | . 2 1 . 1 . . Hover 4 | . . . . 3 1 . Flight . | . . . . . . . Utility 11 | 2 2 . 2 3 2 . Device 4 | 1 1 . 1 1 . . Storage 3 | 1 1 . . 1 . . Processor 1 | . . . 1 . . . Hackware 3 | . . . . 1 2 . Protection . | . . . . . . . Artifact . | . . . . . . . Weapon 27 | 2 3 5 . 8 3 6 Energy Gun 2 | . . . . . . 2 Energy Cannon 3 | . 2 . . . 1 . Ballistic Gun 16 | 2 1 5 . 4 . 4 Ballistic Cannon . | . . . . . . . Launcher 1 | . . . . 1 . . Special Weapon 2 | . . . . 2 . . Impact Weapon . | . . . . . . . Slashing Weapon 1 | . . . . . 1 . Piercing Weapon . | . . . . . . . Special Melee Weapon 2 | . . . . 1 1 . Unidentified Prototypes 1 | . . 1 . . . . Parts Lost 24 | . 1 . . 4 8 11 Power 1 | . . . . . 1 . Propulsion 6 | . . . . . 4 2 Utility 3 | . 1 . . . 1 1 Weapon 14 | . . . . 4 2 8 Highest Loss Streak 11 | . 1 . . 3 7 11 To Critical Strikes 1 | . . . . 1 . . Average Backups 12 | 2 6 13 14 14 13 11 Power . | . 1 1 1 . . . Propulsion . | . . 1 1 . . . Utility 5 | . 1 1 3 7 10 8 Weapon 4 | . 4 9 6 3 1 2 Tool/Special . | . . . . . . . Unused Backups 25 | . 1 1 5 9 1 8 Power 2 | . . . 1 1 . . Propulsion 1 | . 1 . . . . . Utility 14 | . . . . 6 . 8 Weapon 7 | . . 1 4 1 1 . Tool/Special 1 | . . . . 1 . . Average Slot Usage (%) 95 | . 98 99 99 99 89 61 Engine 8 | . 14 11 8 6 6 . Treads 5 | . 23 . . . 1 10 Wheel 13 | . 4 32 27 15 . . Hover 6 | . . . . 11 19 . Device 8 | . 12 11 10 5 9 5 Storage 12 | . 14 11 9 16 9 10 Processor 2 | . . . 7 3 . . Hackware 2 | . . . . 1 8 9 Energy Cannon 3 | . 17 . . . . . Ballistic Gun 26 | . 10 32 36 33 22 16 Special Weapon 1 | . . . . 2 7 . Peak Build Rating 39 | 7 14 25 33 39 38 19 Average Rating 24 | 5 9 21 30 33 30 15 On Entrance 19 | . 7 14 25 33 38 20 Naked Turns . | . . . . . . . Heaviest Build 46 | 15 32 33 38 46 39 30 Greatest Support 40 | 40 40 36 36 36 40 40 Greatest Overweight (x) 9 | . 1 . 1 1 8 9 Average Overweight (x) . | . . . . 1 1 . Largest Inventory Capacity 15 | 8 15 15 15 15 15 15 Average Capacity 14 | 7 12 15 15 15 15 15 Most Carried 15 | 4 15 15 15 15 15 14 Average Carried 12 | 1 6 13 14 14 13 11 Final Capacity 15 | 8 15 15 15 15 15 15 Final Carried 15 | 3 13 15 15 15 14 10 Class Distribution -------------------- 26% | Mutant 24% | Gunner 19% | Skirmisher 17% | Bothacker-Gunner 11% | Scavenger-Gunner Dominant Class ---------------- Mutant | -10/Materials Gunner | -9/Materials Skirmisher | -8/Materials Gunner | -8/Garrison Bothacker-Gunner | -8/Storage Scavenger-Gunner | -8/Garrison Resources | -11 -10 -9 -8 -8 -8 -8 ----------- Run | Yrd Mat Mat Mat Gar Sto Gar Matter Collected 2901 | 193 340 125 747 1007 400 89 Remotely . | . . . . . . . Salvage Created 3918 | 115 414 271 1106 1035 777 200 Parts 234 | 11 16 26 64 64 40 13 Haulers Intercepted 2 | . . . 2 . . . Recyclers Shooed 2 | . 1 . . . 1 . Parts Field Recycled . | . . . . . . . Retrieved Matter . | . . . . . . . Parts Self-Destructed . | . . . . . . . Prevented . | . . . . . . . Kills | -11 -10 -9 -8 -8 -8 -8 ------- Run | Yrd Mat Mat Mat Gar Sto Gar Combat Hostiles Destroyed 91 | . 6 8 27 28 14 8 Melee 1 | . . . . . 1 . Guns 77 | . 4 8 27 24 9 5 Cannons 4 | . 2 . . . 2 . AOE 9 | . . . . 4 2 3 Classes Destroyed 14 | 3 2 4 2 2 1 . Worker 3 | 1 . . 2 . . . Builder 2 | . . . 2 . . . Tunneler 1 | 1 . . . . . . Hauler 2 | . . . 2 . . . Recycler 5 | 1 2 . . . 2 . Operator 2 | . . 1 1 . . . Watcher 4 | . 1 1 2 . . . Swarmer 34 | . . 4 15 10 2 3 Grunt 33 | . 6 2 6 9 7 3 Brawler 2 | . . 1 . . 1 . Duelist 2 | . . . . . 2 . Sentry 13 | . . 1 6 4 2 . Specialist 2 | . . . . 2 . . Programmer 5 | . . . . 3 . 2 Best Kill Streak 7 | 2 6 4 7 7 5 7 Combat Bots Only 7 | . 6 4 6 7 4 7 Max Kills in Single Turn 3 | 1 1 1 3 2 2 2 Gunslinging 1 | . . . 1 1 . . Exploded 2 | . . . . 2 1 2 Melee 1 | . . . . . 1 . Uniques/NPCs Destroyed . | . . . . . . . Combat | -11 -10 -9 -8 -8 -8 -8 -------- Run | Yrd Mat Mat Mat Gar Sto Gar Hostile Shots Fired 421 | . 38 24 58 114 83 104 Missed 108 | . 7 5 18 25 28 25 Hits 313 | . 31 19 40 89 55 79 Melee 8 | . . . . . 8 . Projectile 305 | . 31 19 40 89 47 79 Critical Strikes 11 | . . . 1 3 3 4 Damage Taken 3252 | . 337 138 342 771 767 897 Core 633 | . 71 . 16 73 180 293 Absorbed by Shields 10 | . . . . 10 . . Ignored by Resistances 959 | . 99 45 107 231 216 261 Core Remaining (%) 90 | 100 71 100 . . . . Volleys Fired 219 | 4 27 15 55 44 47 27 Largest 4 | 2 2 3 4 4 3 2 Hottest 120 | 40 120 75 98 98 83 63 Shots Fired 636 | 8 54 45 220 166 104 39 Gun 606 | 8 38 45 220 162 97 36 Cannon 19 | . 16 . . . 2 1 Launcher 9 | . . . . 4 3 2 Special 2 | . . . . . 2 . Kinetic 606 | 8 38 45 220 162 97 36 Thermal 16 | . 16 . . . . . Explosive 9 | . . . . 4 3 2 Electromagnetic 3 | . . . . . 2 1 Robot Hit Streak 33 | 3 22 12 14 16 31 33 Robot Miss Streak 6 | 1 1 3 6 4 2 3 Penetration Max . | . . . . . . . Secondary Targets 19 | . 2 . 6 10 1 . Max Gunslinging Chain 2 | . 1 . 2 2 1 . Shots Hit Robots 422 | 4 45 26 119 116 82 30 Core Hits 199 | 4 19 13 52 51 42 18 Critical Kills 1 | . . . 1 . . . Critical Parts Destroyed 3 | . . . 1 2 . . Critical Strikes 6 | . . . 2 3 1 . Destroy 5 | . . . 2 3 . . Sever 1 | . . . . . 1 . Melee Attacks 10 | . . . . 1 9 . Impact . | . . . . . . . Slashing 9 | . . . . . 9 . Piercing . | . . . . . . . Sneak Attacks 1 | . . . . . 1 . Combat Hostiles . | . . . . . . . Follow-up Attacks . | . . . . . . . Damage Inflicted 6866 | 73 629 405 1935 2141 1074 609 Guns 5669 | 73 419 405 1935 1890 691 256 Cannons 256 | . 210 . . . 41 5 Explosions 810 | . . . . 251 211 348 Melee 131 | . . . . . 131 . Ramming . | . . . . . . . Kinetic 5669 | 73 419 405 1935 1890 691 256 Thermal 210 | . 210 . . . . . Explosive 810 | . . . . 251 211 348 Electromagnetic 46 | . . . . . 41 5 Impact . | . . . . . . . Slashing 131 | . . . . . 131 . Piercing . | . . . . . . . Highest Corruption 5 | . 1 . . . 2 5 Average Corruption 2 | . 1 . . . 2 2 Corruption Purged . | . . . . . . . Corruption Blocked . | . . . . . . . Effects 6 | . . . . . 2 4 Message Errors 4 | . . . . . 1 3 Data Loss (minor) 2 | . . . . . 1 1 Overload Shots . | . . . . . . . Overflow Damage 43 | . . . . 40 . 3 Projectiles . | . . . . . . . Explosions 43 | . . . . 40 . 3 Melee . | . . . . . . . Knockbacks . | . . . . . . . Impact . | . . . . . . . Kinetic . | . . . . . . . Secondary . | . . . . . . . Self-Inflicted Damage 80 | . . . . . 28 52 Shots 3 | . . . . . 1 2 Rammed . | . . . . . . . Targets Rammed . | . . . . . . . Kicked . | . . . . . . . Crushed . | . . . . . . . Highest Temperature 488 | . 276 . 373 488 24 18 Average Temperature 123 | . 145 . 118 137 9 12 Received Heat Transfer 1332 | . 246 42 144 252 351 297 Effects 5 | . . . 1 4 . . Shutdowns 1 | . . . . 1 . . Energy Bleed 2 | . . . 1 1 . . Short Circuit 1 | . . . . 1 . . Damage (minor) 1 | . . . . 1 . . Siege Activations . | . . . . . . . Martial Activations . | . . . . . . . Shielding Activations . | . . . . . . . Robots Disrupted . | . . . . . . . Combat Hostiles . | . . . . . . . Robots Corrupted . | . . . . . . . Combat Hostiles . | . . . . . . . Parts Fried . | . . . . . . . Impact Corruptions . | . . . . . . . Robots Melted . | . . . . . . . Combat Hostiles . | . . . . . . . Parts Melted 2 | . 1 . . . 1 . Heat Transferred 444 | . 444 . . . . . Parts Sabotaged . | . . . . . . . Parts Stolen . | . . . . . . . Parts Stripped . | . . . . . . . Power Chain Reactions . | . . . . . . . Alert | -11 -10 -9 -8 -8 -8 -8 ------- Run | Yrd Mat Mat Mat Gar Sto Gar Maximum Alert Level 3 | . . . 2 3 2 2 Low Security (%) 37 | 100 100 100 32 . . . Level 1 20 | . . . 60 19 . 59 Level 2 23 | . . . 7 17 100 40 Level 3 18 | . . . . 63 . . Level 4 . | . . . . . . . Level 5 . | . . . . . . . High Security . | . . . . . . . Max Security . | . . . . . . . Peak Influence 1086 | 5 111 151 408 1086 550 421 Initial 456 | . . . 40 228 456 313 Average 354 | 1 26 94 233 702 465 363 Influence Increases 2783 | 15 172 234 792 918 434 218 Destroy 0b10 Robot/C 1880 | . 120 160 540 600 300 160 Destroy 0b10 Robot/NC 95 | 15 15 10 45 . 10 . Destroy Leader 312 | . 32 32 128 20 80 20 Allied During Kill 1 | . . . . 1 . . Successful Hack 35 | . 4 6 25 . . . Select Force Hacks 30 | . . . 30 . . . Disable Machine 45 | . . 9 18 . 18 . Anti-Garrison Action 250 | . . . . 250 . . Destroy Structure 75 | . 1 2 6 17 26 23 Lose Combat Pursuer 60 | . . 15 . 30 . 15 Influence Decreases 2362 | 15 172 120 504 234 970 347 Entered New Map 1115 | . . . 74 174 630 237 Time Decay 797 | 15 162 120 280 . 220 . Lost Part 240 | . 10 . . 40 80 110 Lost Ally 60 | . . . . 20 40 . Purge Threat 150 | . . . 150 . . . Squads Dispatched 7 | . . 1 3 . 3 . Investigation 2 | . . . 1 . 1 . Extermination . | . . . . . . . Reinforcement 3 | . . 1 1 . 1 . Assault . | . . . . . . . Garrison 2 | . . . 1 . 1 . Intercept . | . . . . . . . Searches Triggered . | . . . . . . . Construction Impeded . | . . . . . . . Haulers Reinforced . | . . . . . . . Active Scanning Responses . | . . . . . . . Cargo Convoy Interrupts . | . . . . . . . Stealth | -11 -10 -9 -8 -8 -8 -8 --------- Run | Yrd Mat Mat Mat Gar Sto Gar Distress Signals 2 | . . . . . 2 . Communications Jammed . | . . . . . . . Distress Signals . | . . . . . . . Times Spotted 115 | . 9 10 31 34 21 10 Peak Tracking Total 8 | . 5 4 5 8 5 7 Tactical Retreats 4 | . . 1 . 2 . 1 Traps | -11 -10 -9 -8 -8 -8 -8 ------- Run | Yrd Mat Mat Mat Gar Sto Gar Traps Triggered 8 | . 1 . . 6 1 . Indirectly . | . . . . . . . Trap Hack Attempts . | . . . . . . . Triggered . | . . . . . . . Disarmed . | . . . . . . . Reprogrammed . | . . . . . . . Reused . | . . . . . . . Traps Extracted . | . . . . . . . Installed . | . . . . . . . Triggered . | . . . . . . . Machines | -11 -10 -9 -8 -8 -8 -8 ---------- Run | Yrd Mat Mat Mat Gar Sto Gar Machines Disabled 9 | . . 1 2 4 2 . Max in Single Turn 1 | . . 1 1 1 1 . Garrison Relay 4 | . . . . 4 . . Machines Repaired . | . . . . . . . Machines Dismantled 4 | . . . . 4 . . Machines Sabotaged . | . . . . . . . Overloaded Fab Kills . | . . . . . . . Hacking | -11 -10 -9 -8 -8 -8 -8 --------- Run | Yrd Mat Mat Mat Gar Sto Gar Machines Accessed 19 | . 4 4 7 1 3 . Terminals 15 | . 3 4 5 1 2 . Fabricators . | . . . . . . . Repair Stations . | . . . . . . . Recycling Units 1 | . 1 . . . . . Scanalyzers 1 | . . . 1 . . . Garrison Access 2 | . . . 1 . 1 . Total Hacks 45 | . 12 10 15 2 6 . Successful 23 | . 5 5 11 . 2 . Failed 22 | . 7 5 4 2 4 . Catastrophic 6 | . 2 . 2 1 1 . Database Lockouts . | . . . . . . . Manual 32 | . 6 11 12 . 3 . Terminals 41 | . 11 10 13 2 5 . Fabricators . | . . . . . . . Repair Stations . | . . . . . . . Recycling Units 1 | . 1 . . . . . Scanalyzers 1 | . . . 1 . . . Garrison Access 2 | . . . 1 . 1 . Terminal Hacks 6 | . 2 1 3 . . . Level Access Points 1 | . 1 . . . . . Garrison Index 1 | . . . 1 . . . Unreport Threat 1 | . . . 1 . . . Zone Layout 3 | . 1 1 1 . . . Fabricator Hacks . | . . . . . . . Repair Station Hacks . | . . . . . . . Recycling Unit Hacks 1 | . 1 . . . . . Report Inventory 1 | . 1 . . . . . Scanalyzer . | . . . . . . . Garrison Access Hacks 2 | . . . 1 . 1 . Unlock Access 2 | . . . 1 . 1 . Unauthorized Hacks 14 | . 2 4 7 . 1 . Terminals 13 | . 2 4 6 . 1 . Botnet 12 | . 2 4 5 . 1 . Operators 1 | . . . 1 . . . Fabricators . | . . . . . . . Repair Stations . | . . . . . . . Recycling Units . | . . . . . . . Scanalyzers 1 | . . . 1 . . . Extract 1 | . . . 1 . . . Garrison Access . | . . . . . . . Data Cores Recovered . | . . . . . . . Used . | . . . . . . . Hacking Detections 8 | . 1 2 2 1 2 . Full Trace Events 2 | . . . . 1 1 . Feedback Events . | . . . . . . . Feedback Blocked . | . . . . . . . Robot Schematics Acquired . | . . . . . . . Robots Built . | . . . . . . . Authchips . | . . . . . . . Time . | . . . . . . . Total Robot Build Rating . | . . . . . . . Part Schematics Acquired 2 | . . . 2 . . . Parts Built . | . . . . . . . Authchips . | . . . . . . . Time . | . . . . . . . Total Part Build Rating . | . . . . . . . Parts Repaired . | . . . . . . . Time . | . . . . . . . Parts Recycled . | . . . . . . . Recycled Matter . | . . . . . . . Retrieved Matter . | . . . . . . . Retrieved Components . | . . . . . . . Parts Scanalyzed . | . . . . . . . Part Schematics Acquired . | . . . . . . . Parts Damaged . | . . . . . . . Bothacking | -11 -10 -9 -8 -8 -8 -8 ------------ Run | Yrd Mat Mat Mat Gar Sto Gar Used RIF Installer 1 | . . . . 1 . . Robots Hacked 3 | . . . . 1 2 . Non-combat 1 | . . . . . 1 . Combat 2 | . . . . 1 1 . Robot Hacks Applied 3 | . . . . 1 2 . ignore_parts 1 | . . . . . 1 . formatsys_high 2 | . . . . 1 1 . Relay Couplers Released 16 | . . . . 16 . . Machine Destruction 16 | . . . . 16 . . Attached 3 | . . . . 1 2 . Fabnet Peak Effective % . | . . . . . . . Robots Rewired . | . . . . . . . Allies Hacked . | . . . . . . . Hacks Repelled . | . . . . . . . Allies | -11 -10 -9 -8 -8 -8 -8 -------- Run | Yrd Mat Mat Mat Gar Sto Gar Total Allies 3 | . . . . 2 1 . Largest Group 1 | . . . . 1 1 . Highest-Rated Group 20 | . . . . 20 15 . Highest-Rated Ally 20 | . . . . 20 15 . Total Orders . | . . . . . . . Ally Attacks 16 | . . . . 8 8 . Total Damage 417 | . . . . 256 161 . Kills 3 | . . . . 2 1 . Allies Corrupted . | . . . . . . . Allies Melted . | . . . . . . . Intel | -11 -10 -9 -8 -8 -8 -8 ------- Run | Yrd Mat Mat Mat Gar Sto Gar Active Infowar (turns) 769 | 47 121 . 577 24 . . Terrain 601 | . . . 577 24 . . Seismic 168 | 47 121 . . . . . Robot Analysis Total . | . . . . . . . Derelict Logs Recovered . | . . . . . . . Drone Launches . | . . . . . . . Drone Recoveries . | . . . . . . . Exploration | -11 -10 -9 -8 -8 -8 -8 ------------- Run | Yrd Mat Mat Mat Gar Sto Gar Turns Passed 3243 | 127 597 309 578 972 458 202 Spaces Moved 1921 | 70 314 234 450 595 194 64 Core 21 | 12 . . . . 4 5 Treads 377 | 58 256 . . . 12 51 Legs 8 | . . . . . . 8 Wheels 1052 | . 58 234 450 310 . . Hover 463 | . . . . 285 178 . Flight . | . . . . . . . Fastest Speed 50 | 50 105 90 90 105 112 160 Average Speed 115 | 141 149 90 92 108 136 186 Slowest Speed 500 | 160 160 90 105 112 450 500 Overloaded Moves . | . . . . . . . Propulsion Burnouts . | . . . . . . . Robots Hopped . | . . . . . . . Potential Cave-ins 1 | . . . . . 1 . Cave-ins Triggered . | . . . . . . . Exploration Rate (%) 34 | 6 53 24 48 60 33 14 Regions Visited 6 Branch Regions 1 Pre-discovered Areas . | . . . . . . . Known Exits Taken 3 | . 1 . 1 . 1 . Unknown Exits Taken 2 | 1 . 1 . . . . Scrap Searched . | . . . . . . . Spaces Dug 6 | . . . . . 6 . Terrain Destroyed 62 | . . . . 13 29 20 Melee 6 | . . . . . 6 . Projectile . | . . . . . . . AOE 56 | . . . . 13 23 20 Terrain Rammed . | . . . . . . . Walls Destroyed . | . . . . . . . Machines Disabled . | . . . . . . . Actions | -11 -10 -9 -8 -8 -8 -8 --------- Run | Yrd Mat Mat Mat Gar Sto Gar Total 2567 | 90 383 301 543 826 310 114 Wait 184 | . 9 38 15 76 42 4 Move 1916 | 69 313 233 450 594 193 64 Hop . | . . . . . . . Pick Up 74 | 10 16 5 10 19 7 7 Fast Attach 6 | . . 2 . 2 2 . Attach 30 | 7 1 2 2 2 5 11 Detach . | . . . . . . . Swap 38 | . 12 2 2 18 3 1 Drop 37 | . 5 4 9 17 2 . Fire 219 | 4 27 15 55 44 47 27 Melee 10 | . . . . 1 9 . Ram . | . . . . . . . Kick . | . . . . . . . Crush . | . . . . . . . Escape Stasis 40 | . . . . 40 . . Rewire . | . . . . . . . Trap . | . . . . . . . Miscellaneous 13 | . . . . 13 . . Route ------- -11/Scrapyard -10/Materials (discovered 5 exits: *Mat x3 / [*Min x2]) -9/Materials -8/Materials (discovered 2 exits: *Sto / Gar) -8/Garrison (discovered 3 exits: *Sto x3) -8/Storage -8/Garrison History --------- Turn | Location | Event 6 | -11/Scrapyard | Discovered new exit (range 16) 128 | -11/Scrapyard | Entered Materials 328 | -10/Materials | Build established: Mutant 472 | -10/Materials | Discovered new exit (range 14) 704 | -10/Materials | Discovered new exit (range 8) 711 | -10/Materials | Discovered new exit (range 6) 720 | -10/Materials | Identified exit to Materials 725 | -10/Materials | Entered another Materials area 725 | -9/Materials | Evolved 2 slots: Propulsion x1, Weapon x1 1013 | -9/Materials | Discovered new exit (range 4) 1034 | -9/Materials | Entered another Materials area 1034 | -8/Materials | Evolved 2 slots: Utility x1, Weapon x1 1326 | -8/Materials | Build established: Skirmisher 1573 | -8/Materials | Discovered new exit (range 16) 1586 | -8/Materials | Garrison activated, responded to threat 1612 | -8/Materials | Identified exit to Garrison 1612 | -8/Materials | Entered Garrison 1636 | -8/Garrison | Rescued a captive Derelict 1668 | -8/Garrison | Triggered checkpoint 1704 | -8/Garrison | Garrison Relay disabled 1806 | -8/Garrison | Triggered checkpoint 1936 | -8/Garrison | Triggered checkpoint 1945 | -8/Garrison | Build established: Gunner 1990 | -8/Garrison | Destroyed 7 combat bots 2021 | -8/Garrison | Discovered new exit (range 8) 2072 | -8/Garrison | Triggered checkpoint 2116 | -8/Garrison | Triggered checkpoint 2153 | -8/Garrison | Garrison Relay disabled 2214 | -8/Garrison | Discovered new exit (range 10) 2265 | -8/Garrison | Triggered checkpoint 2314 | -8/Garrison | Discovered new exit (range 13) 2381 | -8/Garrison | Lost 3 parts (3w) 2408 | -8/Garrison | Installed Relay Interface Framework 2457 | -8/Garrison | Garrison Relay disabled 2483 | -8/Garrison | Garrison Relay disabled 2584 | -8/Garrison | Entered Storage 2584 | -8/Storage | Accompanied by 1 ally 2729 | -8/Storage | Build established: Bothacker-Gunner 2954 | -8/Storage | Garrison activated, responded to threat 2994 | -8/Storage | Lost 7 parts (1p3n1u2w) 3017 | -8/Storage | Identified exit to Garrison 3042 | -8/Storage | Entered Garrison 3110 | -8/Garrison | Triggered checkpoint 3113 | -8/Garrison | Core integrity fell below 50% 3174 | -8/Garrison | Core integrity fell below 20% 3197 | -8/Garrison | Destroyed 7 combat bots 3219 | -8/Garrison | Lost 11 parts (2n1u8w) 3244 | -8/Garrison | Destroyed by G-47 Trooper with Particle Gun Last Messages --------------- 03167_ EM Pulse Cannon destroyed. 03167_ Lgt. Treads destroyed. 03168_ Acquired Lgt. Assault Rifle. 03169_ Katana destroyed. 03170_ The unstable cave ceiling collapses. 03170_ Enh. Autogun destroyed. 03173_ G-47 Trooper destroyed. 03188_ The unstable cave ceiling collapses. 03188_ Lgt. Assault Rifle destroyed. 03192_ Acquired Lgt. Assault Rifle. 03198_ P-60 Hacker destroyed. 03200_ Acquired 61 matter. 03201_ Q RSTXR1CQSLMRQ:Z1QNKJ 03207_ Acquired Particle Gun. 03212_ The unstable cave ceiling collapses. 03220_ Acquired Aluminum Leg. 03228_ System corrupted: Component data lost. 03230_ Acquired Aluminum Leg. 03234_ Acquired Gravmag System. 03237_ Acquired 28 matter. Map ----- +----------------------------------------------------+ | ?????????????????????????????????????????????????? | | ?????????????????????????????????????????????????? | | ?????????????????????????????????????????????????? | | ?????????????????????????????????????????????????? | | ?????????????????????????????????????????????????? | | ?????????????????????????????????????????????????? | | ?????????????????????????????????????????????????? | | ?????????????????????????????????????????????????? | | ?????????????????????????????????????????????????? | | ?????????????????????????????????????????????????? | | ?????????????????????????????????????????????????? | | ?????????????????????????????????????????????????? | | ????????????"????????????????????????????????????? | | ?????????? ????????????????????????????????????? | | ?????????? ???????????????????????????????????? | | ?????????? ??????????????????????????????????? | | ???????????# ?????????????????????????????????? | | ??????????## ##???????????????????????????????? | | ??????????? ??????????????????????????????? | | ???????????? ??????????????????????????????? | | ?????????????? ???????####??????????????????? | | ???????????????? ???##?## #??????????????????? | | ?????????????????# ??# ## ##?????????????????? | | ???????????# ## ### # #%# #############?????? | | ??????# = ! ????? | | ??????# g @ * ????? | | ??????# g ### ! ###########???????? | | ??????? ## #####??### ## ##????????????????? | | ???????????# ???????????#### #?????????????????? | | ????????????????????????????# #?????????????????? | | ????????????????????????????# #?????????????????? | | ????????????????????????????# #?????????????????? | | ????????????????????????????# #?????????????????? | | ????????????????????????????# #?????????????????? | | ????????????????????????????# #?????????????????? | | ????????????????????????????# #?????????????????? | | ????????????????????????????# #?????????????????? | | ????????????????????????????# #?????????????????? | | ????????????????????????????# #?????????????????? | | ????????????????????????????# #?????????????????? | | ????????????????????????????# #?????????????????? | | ????????????????????????????# #?????????????????? | | ????????????????????????"???# #???????#####?????? | | ????????????????????????" ??# #???????# #?????? | | ????????????????????????# ## ######### ####### | | ????????????????????????# | | ????????????????????????# | | ????????????????????????# #########++############ | | ????????????????????????# ????????# #??????????? | | ????????????????????????##????????? ??????????? | +----------------------------------------------------+ Best States ------------- Heat Dissipation 45 Energy Generation 16 Energy Capacity 290 Matter Stores 450 Matter Capacity 450 Sight Range 16 Terrain Scan Range 16 Terrain Scan Density 110 Resistance: KI 20 Resistance: TH 20 Resistance: EX 20 Resistance: EM 20 Resistance: I 20 Resistance: S 20 Resistance: P 20 Evasion (%) 50 Recoil Reduction 2 Offensive Hacking 10 Relay Coupler Types 1 Relay Coupler Value 35 Item Schematics ----------------- Great Maul | -8/Materials | Extracted Med. Matter Pod | -8/Materials | Extracted Robot Schematics ------------------ None Fabricated ------------ Nothing Repaired ---------- Nothing Alien Tech Used ----------------- None Achievements -------------- Assimilation Complete Challenges ------------ None Game ------ Seed StormWeightWheel Manual? 0 Play Time 00:39:01 Cumulative 16.5 hours Start 2025.05.07 @ 03:26:39 End 2025.05.07 @ 04:03:40 Sessions 1 Manual Loads 0 Difficulty Adventurer Special Mode None Game No. 39 Rogue 35 Adventurer 3 Explorer 1 Win Type - Total 0 Types 0/0/0/0/0/0/0/0/0/0 Lore% 10 Gallery% 23 Achievement% 23 Wizard Run 0 Options --------- Layout 1 ASCII 0 Keyboard 0 Movement Mouse Keybinds 0 Fullscreen 2 Font 24/Smallcaps Map View 50x35 Zoom Use 0% Tactical HUD 1 Map Filters NONE Filters NONE Steam 1 RUN: 597c8441-8acd-4ab0-9b3e-4177e8c172b4